bitfinex-derivatives/quotes_ETHF0:USTF0_20260209
["timestamp","ask_amount","ask_price","bid_price","bid_amount"]
[1770611682770,11.06696817,2092.9,2092.4,11.09085421]
[1770611690777,11.6757421,2093.1,2092.4,11.09085421]
[1770611698488,11.6757421,2092.9,2092.3,11.82337135]
[1770611701689,11.6757421,2093.1,2092.7,11.82337135]
[1770611701882,54.45341242,2093.3,2092.7,11.82337135]
[1770611702082,54.45341242,2093.3,2092.3,2.85634058]
[1770611702083,0.00472591,2093.3,2092.9,11.82337135]
[1770611702286,11.6757421,2093.6,2092.9,11.82337135]
[1770611702589,11.6757421,2093.6,2093.1,11.82337135]
[1770611703288,11.67940321,2093.6,2093.1,11.82337135]
[1770611703589,11.67940321,2093.6,2092.8,11.82337135]
[1770611704987,11.67940321,2093.6,2092.8,13.65157304]
[1770611706989,11.67940321,2093.6,2092.8,11.82337135]
[1770611711690,11.67940321,2093.6,2092.6,2.8629505]
[1770611711890,11.6757421,2093.3,2092.4,11.82337135]
[1770611714194,11.6757421,2093.2,2092.4,11.82337135]
[1770611716297,11.10098769,2093.1,2092.2,11.09602217]
[1770611716498,11.10098769,2093.0,2092.2,11.09602217]
[1770611720599,11.34006769,2093.0,2092.2,0.00463376]
[1770611721101,11.34006769,2093.0,2092.2,10.81086377]
[1770611724702,11.34006769,2093.0,2092.2,0.00463376]
[1770611724901,54.1130121,2093.0,2092.2,0.00463376]
[1770611725100,13.18361784,2092.9,2092.2,0.00463376]
[1770611725304,0.2391,2092.8,2091.9,10.80623001]
[1770611725501,11.11699869,2092.7,2091.9,10.80623001]
[1770611726204,11.11699869,2092.7,2091.9,10.81044492]
[1770611727804,11.35610869,2092.7,2091.9,10.81044492]
[1770611728005,11.35610869,2092.7,2091.9,0.00421491]
[1770611728596,53.8899431,2093.0,2092.0,10.80623001]
[1770611728908,11.11699869,2093.0,2092.0,10.80623001]
[1770611731408,11.35607869,2093.0,2092.0,10.80623001]
[1770611732512,11.35607869,2093.0,2092.0,12.63375916]
[1770611735108,11.35607869,2093.0,2092.0,15.49372456]
[1770611735309,11.35607869,2093.0,2092.1,10.80623001]
[1770611737716,11.11699869,2093.2,2092.3,10.80623001]
[1770611740215,11.11699869,2093.2,2092.4,10.80623001]
[1770611746026,11.11699869,2093.2,2092.5,11.24553032]
[1770611747825,10.97012634,2093.4,2092.5,11.24553032]
[1770611748620,10.97012634,2093.4,2092.6,11.24553032]
[1770611753027,10.97012634,2093.5,2092.6,11.24553032]
[1770611761236,10.97012634,2093.5,2092.7,11.24553032]
[1770611762848,10.97012634,2093.4,2092.7,11.24553032]
[1770611763448,42.77660552,2093.6,2092.7,11.24553032]
[1770611763747,0.00366111,2093.6,2092.9,11.24553032]
[1770611764042,10.97012634,2093.8,2093.0,11.24553032]
[1770611765049,10.97613167,2093.8,2093.0,11.24553032]
[1770611766848,10.97613167,2093.8,2093.0,13.07274117]
[1770611770245,10.97012634,2093.5,2092.9,2.8599654]
[1770611770549,10.97012634,2093.5,2092.8,14.10549572]
[1770611770852,10.97012634,2093.3,2092.8,11.24553032]
[1770611773646,10.29491598,2092.8,2091.9,11.24974523]
[1770611773851,44.60015526,2092.9,2092.1,11.24553032]
[1770611773852,10.29491598,2092.5,2092.1,11.24553032]
[1770611774053,8.15514167,2092.9,2092.3,11.24553032]
[1770611774453,8.15514167,2092.9,2092.4,7.15282688]
[1770611774654,8.15514167,2092.9,2092.5,11.24553032]
[1770611774849,8.15514167,2092.9,2091.9,0.00421491]
[1770611774850,8.15946705,2092.5,2092.1,5.18990363]
[1770611775049,8.15946705,2092.5,2092.1,16.43543395]
[1770611775248,8.15946705,2092.5,2092.2,11.65332767]
[1770611776654,8.15946705,2092.5,2092.1,16.8432313]
[1770611776857,8.15946705,2092.5,2092.1,12.13440239]
[1770611777456,8.15946705,2092.5,2092.1,11.65332767]
[1770611778552,12.88130139,2092.7,2092.1,11.65332767]
[1770611778756,10.02297928,2092.6,2092.2,11.41943452]
[1770611778947,10.02297928,2092.6,2092.2,10.9383598]
[1770611780654,10.02297928,2092.6,2092.0,0.48107472]
[1770611780854,10.02297928,2092.6,2092.1,10.9383598]
[1770611782551,10.02297928,2092.6,2092.2,0.48107472]
[1770611782756,10.02297928,2092.6,2092.0,0.48107472]
[1770611785365,10.26210928,2092.6,2091.9,0.00421491]
[1770611786562,10.26210928,2092.6,2092.0,0.48107472]
[1770611786862,10.26210928,2092.6,2091.9,0.00421491]
[1770611787262,10.26210928,2092.6,2092.0,0.01]
[1770611787563,10.26210928,2092.6,2091.9,0.00421491]
[1770611787958,9.44318039,2092.4,2091.5,10.9383598]
[1770611788163,9.44318039,2092.4,2091.9,0.01]
[1770611788361,9.44318039,2091.8,2090.8,12.18581938]
[1770611788560,9.44318039,2091.8,2090.8,10.9383598]
[1770611788963,9.44815764,2091.8,2090.8,10.94207358]
[1770611789360,9.44401756,2091.6,2090.8,10.94207358]
[1770611789560,9.44401756,2091.6,2090.8,0.00371378]
[1770611790064,9.44401756,2091.4,2090.8,0.00371378]
[1770611791265,9.44401756,2091.4,2090.8,10.94207358]
[1770611793162,2.86329936,2091.8,2090.8,10.94207358]
[1770611793367,9.49772842,2091.7,2090.8,10.94207358]
[1770611794364,9.49772842,2091.7,2090.8,0.00371378]
[1770611794565,9.73695842,2091.7,2090.8,0.00371378]
[1770611795471,9.48095227,2091.5,2090.8,0.00371378]
[1770611795669,9.72020227,2091.5,2090.8,0.00371378]
[1770611796575,9.71472761,2091.3,2089.7,10.9383598]
[1770611796866,9.71472761,2091.3,2090.5,10.9483598]
[1770611796867,9.47174383,2091.0,2090.5,10.9483598]
[1770611797175,9.47174383,2091.0,2089.2,3.09521767]
[1770611797176,9.47174383,2090.8,2090.3,10.9383598]
[1770611797569,11.30412773,2090.8,2090.3,10.94208116]
[1770611797874,9.47174383,2090.8,2090.3,10.94208116]
[1770611798574,9.47174383,2091.1,2090.3,10.94208116]
[1770611799071,9.41587292,2091.1,2090.5,10.9383598]
[1770611799471,9.41587292,2090.8,2090.4,10.9383598]
[1770611799672,9.41587292,2090.8,2090.3,10.94208116]
[1770611800373,9.41587292,2091.1,2090.3,10.94208116]
[1770611800975,9.41587292,2091.1,2090.5,10.9383598]
[1770611801175,9.53100957,2091.2,2090.5,10.9383598]
[1770611801471,1.8323839,2091.1,2090.5,10.9383598]
[1770611801671,9.29172957,2091.0,2090.5,10.9383598]
[1770611802977,9.32906155,2091.2,2090.5,12.7707437]
[1770611804179,9.32906155,2091.6,2090.5,12.7707437]
[1770611804578,9.32906155,2091.6,2090.8,10.9383598]
[1770611808172,9.58747878,2091.4,2090.6,10.91069005]
[1770611810776,0.23922,2091.7,2090.4,10.91069005]
[1770611810777,9.45818319,2091.2,2090.4,10.91069005]
[1770611810975,9.45818319,2091.1,2090.4,10.91069005]
[1770611812074,9.45818319,2091.0,2090.3,10.91441141]
[1770611812881,2.85832211,2091.1,2090.3,10.91441141]
[1770611813271,9.43056635,2091.0,2090.3,10.91441141]
[1770611814381,9.43056635,2090.9,2090.3,10.91441141]
[1770611816285,12.28888846,2090.9,2090.3,10.91441141]
[1770611816478,9.19407205,2090.8,2090.3,10.91441141]
[1770611818185,9.24930996,2090.7,2090.3,10.91441141]
[1770611818585,9.24930996,2090.7,2090.3,0.00372136]
[1770611818883,9.24930996,2090.7,2090.3,10.91441141]
[1770611819383,12.11384804,2090.8,2090.3,10.91441141]
[1770611819576,9.25552593,2090.7,2090.3,10.91441141]
[1770611819774,2.85832211,2090.8,2090.3,10.91441141]
[1770611820178,42.86118581,2090.9,2090.3,10.91441141]
[1770611820382,2.85707359,2090.9,2090.3,10.91441141]
[1770611820779,16.97320042,2091.2,2090.3,10.91441141]
[1770611820979,11.27014117,2091.0,2090.3,10.91441141]
[1770611821185,11.27014117,2090.7,2090.0,10.91069005]
[1770611822188,11.27014117,2090.7,2090.0,10.91657958]
[1770611823684,11.27014117,2090.7,2090.0,0.00588953]
[1770611823887,11.50948117,2090.7,2090.0,0.00588953]
[1770611824088,11.27014117,2090.5,2089.4,10.91069005]
[1770611825091,11.27014117,2090.5,2089.4,10.91579372]
[1770611825786,5.94240925,2090.6,2089.4,10.91579372]
[1770611825980,11.27014117,2090.5,2089.4,10.91579372]
[1770611826386,11.27014117,2090.3,2089.4,10.91579372]
[1770611826582,11.27596204,2090.3,2089.4,10.91579372]
[1770611826789,0.00582087,2090.3,2089.4,10.91579372]
[1770611830194,11.27596204,2090.3,2089.4,10.91579372]
[1770611832192,11.27014117,2090.2,2089.4,10.91579372]
[1770611835399,0.24520087,2090.3,2089.4,10.91579372]
[1770611835901,10.99141745,2090.3,2089.4,10.91579372]
[1770611838099,0.00582087,2090.3,2089.4,10.91579372]
[1770611838301,10.9013706,2090.6,2089.4,10.91579372]
[1770611839403,10.90473248,2090.6,2089.4,10.91579372]
[1770611839908,10.90473248,2090.6,2089.5,11.59570992]
[1770611845405,10.90473248,2090.6,2089.5,14.45282517]
[1770611845612,10.90473248,2090.6,2089.5,14.44283517]
[1770611846706,16.60442985,2091.1,2089.7,11.59570992]
[1770611846904,10.9013706,2091.0,2089.7,14.45282517]
[1770611847104,10.9013706,2091.0,2089.9,11.59570992]
[1770611847908,10.9062336,2091.0,2089.9,11.59570992]
[1770611849917,10.9062336,2091.0,2089.9,14.45282517]
[1770611851218,11.1455336,2091.0,2089.9,14.45282517]
[1770611851520,10.9013706,2090.9,2089.9,11.59570992]
[1770611851718,11.1406806,2090.9,2089.9,11.59570992]
[1770611853119,53.91854575,2090.9,2089.9,11.59570992]
[1770611853420,10.9013706,2090.7,2089.9,11.59570992]
[1770611868528,10.91861289,2090.6,2089.9,11.59570992]
[1770611869729,10.91861289,2090.7,2089.9,11.59570992]
[1770611871329,10.91861289,2090.6,2089.9,11.59570992]
[1770611879439,42.77786515,2090.7,2089.9,11.59570992]
[1770611879641,53.93580804,2090.8,2089.9,11.59570992]
[1770611879835,10.91861289,2090.7,2089.9,11.59570992]
[1770611880339,2.85376138,2090.6,2089.9,14.45282517]
[1770611881641,10.91861289,2090.5,2089.9,14.45282517]
[1770611881838,10.91861289,2090.5,2089.9,11.59570992]
[1770611884033,10.91861289,2090.4,2089.9,11.59570992]
[1770611886136,10.91861289,2090.4,2089.8,0.37326039]
[1770611886340,10.91861289,2090.1,2089.6,10.94430948]
[1770611886642,10.91861289,2090.0,2089.6,10.94430948]
[1770611886842,10.91861289,2090.0,2089.4,10.94941315]
[1770611886843,10.91861289,2089.9,2089.4,10.94941315]
[1770611889139,10.91861289,2089.9,2089.4,0.00510367]
[1770611889337,10.91861289,2089.9,2089.4,10.94941315]
[1770611894351,10.91861289,2090.1,2089.4,10.94941315]
[1770611896952,12.75230082,2090.1,2089.4,10.94941315]
[1770611898349,10.91861289,2090.1,2089.4,10.94941315]
[1770611899348,10.91861289,2090.1,2089.4,0.00510367]
[1770611899551,10.87886668,2089.7,2089.1,11.43862832]
[1770611900244,10.87886668,2089.2,2088.7,11.43862832]
[1770611900442,10.87886668,2089.7,2089.0,11.43862832]
[1770611900842,12.71255461,2089.7,2089.0,11.43862832]
[1770611901344,12.71255461,2089.7,2088.8,11.43862832]
[1770611901547,12.71618277,2089.7,2088.8,11.43862832]
[1770611904451,10.88249484,2089.7,2088.8,11.43862832]
[1770611904651,12.71618277,2089.7,2088.8,11.43862832]
[1770611907756,10.87886668,2089.4,2088.8,11.43862832]
[1770611908155,10.87886668,2089.2,2088.7,0.00343161]
[1770611908460,10.87886668,2089.2,2088.5,11.43862832]
[1770611909449,1.83368793,2089.5,2089.1,11.43862832]
[1770611909450,10.87886668,2089.5,2089.1,11.43862832]
[1770611909658,10.87886668,2089.5,2089.0,11.43862832]
[1770611910060,10.87886668,2089.1,2088.4,11.43862832]
[1770611911063,10.87886668,2089.1,2088.4,11.44322337]
[1770611911659,10.87886668,2089.3,2088.4,11.44322337]
[1770611911864,10.87886668,2089.6,2089.1,11.43862832]
[1770611912753,10.87886668,2089.4,2088.7,11.43862832]
[1770611916259,10.87886668,2089.5,2088.7,13.27231625]
[1770611917265,10.87886668,2089.6,2089.0,11.43862832]
[1770611917764,0.00362816,2089.7,2089.0,13.27231625]
[1770611918165,10.88249484,2089.7,2089.0,13.27231625]
[1770611919467,4.67427391,2090.1,2089.0,13.27231625]
[1770611919468,10.87886668,2089.9,2089.3,11.43862832]
[1770611920370,10.88422225,2089.9,2089.3,11.43862832]
[1770611921167,0.00535557,2089.9,2089.3,11.43862832]
[1770611921362,0.00535557,2089.9,2089.2,1.83368793]
[1770611921363,30.959,2090.2,2089.5,11.43862832]
[1770611921867,10.87886668,2090.1,2089.5,11.43862832]
[1770611922470,10.8826664,2090.1,2089.5,11.43862832]
[1770611924263,10.8826664,2090.1,2089.3,11.43862832]
[1770611924264,12.71635433,2090.1,2089.3,11.43862832]
[1770611924769,10.8826664,2090.1,2089.3,11.43862832]
[1770611927070,1.83368793,2090.0,2089.1,11.67840476]
[1770611927269,10.8695519,2089.7,2089.1,11.67840476]
[1770611928366,10.8695519,2089.7,2088.9,11.67840476]
[1770611936078,10.8695519,2089.4,2088.5,13.51209269]
[1770611940780,2.83532669,2089.5,2088.8,11.67840476]
[1770611940986,2.83532669,2089.5,2088.7,1.83368793]
[1770611940987,0.23945,2089.7,2089.0,11.67840476]
[1770611941387,11.1090019,2089.7,2089.0,11.67840476]
[1770611942895,10.8695519,2089.7,2089.0,11.67840476]
[1770611943296,10.8695519,2089.7,2088.7,1.83368793]
[1770611943297,10.8695519,2089.0,2088.4,0.00459505]
[1770611943498,10.8695519,2088.4,2087.7,11.67840476]
[1770611943695,12.70323983,2088.1,2087.6,10.68967636]
[1770611943996,2.83590514,2088.6,2087.6,12.52336429]
[1770611944191,5.70305925,2088.9,2087.4,1.83368793]
[1770611944192,2.83590514,2088.9,2088.1,11.67840476]
[1770611944391,10.8695519,2088.5,2088.1,0.0042129]
[1770611944989,10.8695519,2088.5,2088.1,11.68261766]
[1770611945397,10.8695519,2088.5,2088.1,0.0042129]
[1770611945601,10.8695519,2088.5,2088.1,11.68261766]
[1770611946197,10.8695519,2088.5,2087.1,0.46613839]
[1770611946395,10.8695519,2087.9,2087.0,13.51209269]
[1770611946897,10.8695519,2087.9,2087.0,11.67840476]
[1770611947298,10.8695519,2087.5,2087.0,0.00443459]
[1770611947498,10.8695519,2087.5,2087.0,11.68283935]
[1770611949000,10.8695519,2087.5,2087.0,0.00443459]
[1770611950194,10.8695519,2087.5,2086.5,11.67840476]
[1770611950602,10.8695519,2087.5,2086.8,11.68840476]
[1770611950801,10.8695519,2087.9,2086.8,11.68840476]
[1770611951009,10.8695519,2087.9,2086.8,11.67840476]
[1770611951206,10.8695519,2087.9,2086.8,11.6844622]
[1770611953209,10.8695519,2088.1,2086.8,11.6844622]
[1770611960410,11.79719808,2088.3,2086.8,11.6844622]
[1770611960616,11.79719808,2088.5,2087.1,11.63681705]
[1770611961320,0.00458017,2088.9,2087.1,11.63681705]
[1770611961321,11.79719808,2088.1,2087.1,11.63681705]
[1770611966824,11.79719808,2088.1,2086.9,11.63681705]
[1770611971825,14.63310322,2088.3,2086.9,11.63681705]
[1770611973028,14.63310322,2088.3,2086.9,11.87658705]
[1770611973225,14.63310322,2088.2,2086.9,11.87658705]
[1770611974724,2.83590514,2088.2,2087.2,11.63681705]
[1770611974930,14.63310322,2088.5,2087.5,11.63681705]
[1770611976019,11.79719808,2088.5,2087.5,11.63681705]
[1770611976933,14.63310322,2088.5,2087.5,11.63681705]
[1770611978129,11.79719808,2088.5,2087.5,11.63681705]
[1770611978324,14.63310322,2088.5,2087.5,11.63681705]
[1770611978529,11.79719808,2088.5,2087.5,11.63681705]
[1770611979837,14.63310322,2088.6,2087.5,11.63681705]
[1770611980235,11.79719808,2088.6,2087.5,11.63681705]
[1770611980535,14.63310322,2088.6,2087.5,11.63681705]
[1770611983934,2.83590514,2088.6,2087.5,11.63681705]
[1770611984138,11.79719808,2088.6,2087.5,11.63681705]
[1770611984633,14.63310322,2088.6,2087.5,11.63681705]
[1770611984834,14.63310322,2088.2,2087.2,11.63681705]
[1770611986933,11.79719808,2088.2,2087.2,11.63681705]
[1770611987938,10.98528097,2088.1,2087.2,11.63681705]
[1770611988437,10.98528097,2088.2,2087.2,11.63681705]
[1770611995238,10.98528097,2088.1,2087.2,11.63681705]
[1770611999639,10.98528097,2088.2,2087.2,11.63681705]
[1770612000143,10.98528097,2088.2,2087.3,11.08483728]
[1770612001342,10.98528097,2088.2,2087.4,11.08483728]
[1770612001637,10.98528097,2088.2,2087.2,4.30066375]
[1770612001849,10.98528097,2088.0,2087.2,11.08483728]
[1770612002141,10.98528097,2087.9,2087.0,11.08483728]
[1770612002341,13.82118611,2087.8,2086.7,11.08483728]
[1770612002537,10.98528097,2087.6,2086.7,11.08483728]
[1770612002937,10.98528097,2087.6,2086.8,11.09089472]
[1770612006740,10.98528097,2087.6,2086.8,0.00605744]
[1770612006947,10.98528097,2087.6,2086.8,11.09089472]
[1770612019663,10.98528097,2087.6,2087.0,10.82141707]
[1770612019857,13.87640299,2087.8,2087.2,10.82141707]
[1770612020060,11.04519654,2087.7,2087.2,10.82141707]
[1770612020456,2.83120645,2088.0,2087.6,10.82141707]
[1770612020658,11.04519654,2088.2,2087.6,10.82141707]
[1770612021362,13.87640299,2088.4,2087.6,10.82141707]
[1770612021553,13.87640299,2088.4,2087.5,1.83799795]
[1770612021554,10.04519654,2088.4,2087.8,10.82141707]
[1770612021756,11.04519654,2088.2,2087.4,10.82141707]
[1770612022267,11.04519654,2088.0,2087.4,10.82141707]
[1770612024658,11.04519654,2088.0,2087.1,10.82141707]
[1770612025467,11.04519654,2087.9,2087.1,10.82141707]
[1770612029361,2.83120645,2088.1,2087.1,10.82141707]
[1770612029667,11.04519654,2088.0,2087.1,10.82141707]
[1770612030163,11.04519654,2088.2,2087.2,10.82141707]
[1770612031172,2.83120645,2088.3,2087.2,10.82141707]
[1770612031371,11.04519654,2088.4,2087.3,10.82141707]
[1770612032970,13.87640299,2088.6,2087.4,10.82141707]
[1770612033173,11.04519654,2088.5,2087.5,10.82141707]
[1770612033371,11.04519654,2088.4,2087.5,10.82141707]
[1770612045071,11.4018212,2087.8,2087.2,16.15561904]
[1770612045266,11.4018212,2087.8,2087.2,11.85495529]
[1770612046175,11.4018212,2088.0,2087.2,13.69158583]
[1770612046768,11.4018212,2088.0,2087.2,11.85495529]
[1770612046978,11.4018212,2088.0,2087.2,13.69158583]
[1770612048679,11.4018212,2088.2,2087.5,11.85495529]
[1770612052478,1.83663054,2088.1,2087.5,11.85495529]
[1770612052676,11.4018212,2088.0,2087.5,11.85495529]
[1770612052884,11.4018212,2088.0,2087.2,11.85495529]
[1770612055181,11.4018212,2088.0,2087.3,11.85495529]
[1770612056281,11.4018212,2088.2,2087.3,11.85495529]
[1770612057586,11.4018212,2088.2,2087.5,11.85495529]
[1770612059189,11.4018212,2088.2,2087.6,11.85495529]
[1770612060189,2.83120645,2088.6,2087.6,13.69158583]
[1770612060387,11.4018212,2088.6,2088.1,11.85495529]
[1770612060589,11.4018212,2088.6,2087.8,11.85495529]
[1770612063086,11.4018212,2088.6,2087.6,4.30066375]
[1770612063279,11.4018212,2088.6,2087.7,11.85495529]
[1770612063481,14.23302765,2088.6,2087.7,11.85495529]
[1770612065394,11.4018212,2088.6,2087.7,11.85495529]
[1770612073200,11.4018212,2088.7,2087.7,11.85495529]
[1770612073901,11.4018212,2088.7,2087.8,11.85495529]
[1770612075498,11.06738378,2088.8,2088.0,11.11844424]
[1770612075704,11.06738378,2088.8,2088.0,15.41910799]
[1770612075999,11.06738378,2088.8,2088.0,11.11844424]
[1770612078000,11.14846254,2088.8,2088.0,11.11844424]
[1770612087407,11.14846254,2088.7,2088.0,11.11844424]
[1770612094714,13.97966899,2088.8,2088.0,11.11844424]
[1770612095803,11.14846254,2088.8,2088.2,11.55698899]
[1770612096007,11.14846254,2088.8,2088.3,11.55698899]
[1770612096209,11.15304271,2088.9,2088.3,11.56250333]
[1770612097214,11.15304271,2088.9,2088.3,0.00551434]
[1770612097713,11.15304271,2088.9,2088.3,11.56250333]
[1770612108725,0.00458017,2088.9,2088.3,11.56250333]
[1770612109025,11.34787163,2089.2,2088.4,11.61072117]
[1770612110026,11.35237094,2089.2,2088.4,11.61072117]
[1770612110528,0.00449931,2089.2,2088.6,11.61072117]
[1770612112234,11.34787163,2089.8,2088.8,11.61072117]
[1770612112431,11.34787163,2089.8,2088.9,11.61072117]
[1770612113117,11.35398763,2089.8,2088.9,11.61072117]
[1770612115723,11.35398763,2089.8,2088.9,11.87577548]
[1770612117730,0.006116,2089.8,2088.9,13.71107855]
[1770612118230,11.35398763,2089.8,2088.9,13.71107855]
[1770612118727,0.006116,2089.8,2088.9,11.87577548]
[1770612120532,11.34787163,2090.1,2089.1,13.44602424]
[1770612121620,0.00500632,2090.1,2089.5,11.61072117]
[1770612122623,11.35287795,2090.1,2089.3,11.61072117]
[1770612122836,11.35287795,2090.1,2089.4,11.61072117]
[1770612123127,13.18818102,2090.1,2089.0,11.61072117]
[1770612124839,11.35287795,2090.1,2089.0,11.61072117]
[1770612128435,11.35287795,2090.1,2088.9,11.87577548]
[1770612133440,11.35287795,2090.1,2089.0,11.61072117]
[1770612137343,11.35287795,2090.1,2089.1,10.89461012]
[1770612140347,11.64432889,2090.0,2089.1,10.89461012]
[1770612141348,11.64432889,2090.0,2089.2,10.89461012]
[1770612144948,11.64432889,2090.0,2089.2,12.72816308]
[1770612146849,11.64933521,2090.1,2089.5,10.89461012]
[1770612148653,0.00500632,2090.1,2089.5,10.89461012]
[1770612148856,11.64933521,2090.1,2089.5,10.89461012]
[1770612149956,13.48288817,2090.1,2089.4,10.89461012]
[1770612150258,13.48288817,2090.1,2089.3,10.89461012]
[1770612153749,11.64933521,2090.1,2089.3,10.89461012]
[1770612158960,16.24428752,2090.3,2089.9,1.83355296]
[1770612159160,11.64432889,2090.8,2090.2,4.3006056]
[1770612159365,11.64432889,2090.5,2090.2,2.86712591]
[1770612159663,11.64432889,2090.5,2090.2,13.76173603]
[1770612159859,11.64432889,2091.0,2090.3,10.89461012]
[1770612160159,11.64876083,2091.0,2090.4,10.89461012]
[1770612160358,11.64876083,2091.0,2090.3,2.87156367]
[1770612160560,11.64432889,2090.7,2090.3,2.87156367]
[1770612161459,11.64432889,2090.7,2090.3,0.00443776]
[1770612162665,11.64432889,2090.7,2090.3,10.89904788]
[1770612162867,16.42992889,2090.7,2090.3,0.00443776]
[1770612163071,11.64432889,2090.6,2090.3,0.00443776]
[1770612164967,11.31877306,2090.8,2090.3,10.89904788]
[1770612165160,11.31877306,2090.9,2090.3,10.89904788]
[1770612165360,11.31877306,2090.9,2090.3,0.00443776]
[1770612165564,11.31877306,2090.4,2090.0,0.95886187]
[1770612165768,11.31877306,2090.4,2089.8,35.2456056]
[1770612165968,11.31877306,2090.4,2089.8,30.945]
[1770612166169,11.31877306,2090.3,2089.8,41.68759304]
[1770612166567,11.31877306,2090.3,2089.9,10.74259304]
[1770612166771,11.31877306,2090.3,2089.8,41.69202857]
[1770612167063,11.31877306,2090.3,2089.9,10.74259304]
[1770612167470,11.31877306,2090.2,2089.9,10.74259304]
[1770612168663,11.31877306,2090.2,2089.8,30.94943553]
[1770612168868,11.31877306,2090.2,2089.8,41.69202857]
[1770612169370,11.31877306,2090.2,2089.8,45.99263417]
[1770612171568,11.31877306,2090.1,2089.8,35.25004113]
[1770612172076,1.83355296,2090.9,2089.8,30.94943553]
[1770612172077,11.31877306,2089.9,2089.8,30.94943553]
[1770612172366,10.48747076,2089.9,2089.8,30.94943553]
[1770612172572,11.31877306,2090.4,2089.8,30.94943553]
[1770612172768,1.83355296,2090.5,2089.8,30.94943553]
[1770612172769,11.31877306,2090.1,2089.8,30.94943553]
[1770612174072,11.31877306,2090.1,2089.8,41.69202857]
[1770612174470,11.31877306,2090.1,2089.8,30.94943553]
[1770612175679,2.87733596,2090.2,2089.9,10.74259304]
[1770612175871,11.31877306,2090.4,2089.9,10.74259304]
[1770612176575,11.31877306,2090.4,2089.8,41.69202857]
[1770612176774,11.31877306,2090.4,2089.9,10.74259304]
[1770612178477,11.31877306,2090.4,2089.8,41.69202857]
[1770612179572,13.15232602,2090.4,2089.8,0.00443553]
[1770612179781,13.15232602,2090.4,2089.9,30.944]
[1770612180171,11.31877306,2090.4,2089.9,30.944]
[1770612180774,11.31877306,2090.4,2090.0,10.74259304]
[1770612180974,9.48727995,2090.4,2090.0,10.74259304]
[1770612182275,9.48727995,2090.4,2089.9,30.944]
[1770612184585,11.31877306,2090.2,2089.5,41.68659304]
[1770612184786,11.31877306,2090.2,2089.7,10.74259304]
[1770612185483,11.31877306,2090.2,2089.7,10.74659963]
[1770612185987,11.31877306,2090.2,2089.7,0.00400659]
[1770612187386,11.31877306,2090.2,2089.7,10.74659963]
[1770612187686,11.31877306,2090.2,2089.7,0.00400659]
[1770612189487,11.31877306,2090.2,2089.5,30.944]
[1770612189488,9.27561776,2090.0,2089.3,10.74259304]
[1770612190084,9.27561776,2090.2,2089.3,10.74259304]
[1770612190390,9.27561776,2090.2,2089.3,10.746633]
[1770612190890,9.27561776,2090.2,2089.7,10.74259304]
[1770612191887,9.14804795,2090.6,2089.9,10.74259304]
[1770612192586,9.14804795,2090.9,2090.1,10.74259304]
[1770612194989,9.57511986,2090.9,2090.1,10.74259304]
[1770612199289,9.57511986,2090.9,2089.9,10.86396235]
[1770612201992,9.81443986,2090.9,2089.9,10.86396235]
[1770612206392,9.61345442,2090.7,2089.8,10.86396235]
[1770612206996,11.68513223,2090.7,2089.8,10.86396235]
[1770612207196,11.68513223,2090.7,2089.6,16.59706963]
[1770612207699,11.68513223,2090.7,2089.7,10.86396235]
[1770612207900,9.85279442,2090.7,2089.7,10.86396235]
[1770612210503,9.54300234,2090.5,2089.7,10.86396235]
[1770612217703,9.54300234,2090.5,2089.5,10.86396235]
[1770612219704,9.54300234,2090.5,2089.6,10.86396235]
[1770612222406,11.37534015,2090.5,2089.6,10.86396235]
[1770612224808,9.56976215,2090.3,2089.5,10.86396235]
[1770612225812,9.56976215,2090.3,2089.6,11.24152666]
[1770612226314,52.23531507,2090.7,2089.6,11.24152666]
[1770612226613,9.56563788,2090.7,2089.7,11.24152666]
[1770612227814,9.56563788,2090.7,2089.8,11.24152666]
[1770612228615,9.56563788,2090.7,2090.0,11.24152666]
[1770612229610,0.23932,2090.9,2090.0,11.24152666]
[1770612229809,9.62808504,2090.9,2090.0,11.24152666]
[1770612232215,9.62808504,2090.9,2090.1,11.24152666]
[1770612244327,9.2748239,2090.7,2089.9,14.10550523]
[1770612244629,11.10716171,2090.7,2089.9,11.24152666]
[1770612244822,9.37551856,2090.5,2089.9,11.24152666]
[1770612245430,9.37551856,2090.5,2089.7,11.24152666]
[1770612249018,9.61487856,2090.5,2089.7,11.24152666]
[1770612249530,9.1880738,2090.3,2089.7,11.24152666]
[1770612249731,9.1880738,2090.1,2089.5,11.24152666]
[1770612250229,11.02041161,2090.1,2089.4,11.24152666]
[1770612250430,9.4274838,2090.1,2089.4,11.24152666]
[1770612252932,9.298344,2089.9,2089.4,11.24152666]
[1770612257127,0.23941,2090.1,2089.4,11.24152666]
[1770612257530,0.23941,2090.1,2089.4,13.07562711]
[1770612258928,9.3363919,2090.4,2089.4,13.07562711]
[1770612260429,1.83410045,2090.6,2089.4,11.24152666]
[1770612260630,9.3363919,2090.8,2090.0,11.45438135]
[1770612260832,11.17049235,2090.8,2090.0,11.45438135]
[1770612263428,9.32147566,2090.8,2090.0,11.45438135]
[1770612263733,11.15557611,2090.8,2090.0,11.45438135]
[1770612266635,9.32147566,2090.8,2090.0,11.45438135]
[1770612268632,0.24373194,2091.0,2090.2,11.45438135]
[1770612268831,9.59413465,2091.0,2090.2,11.45438135]
[1770612269034,11.4282351,2091.0,2090.2,11.45438135]
[1770612271530,0.00443194,2091.0,2090.2,13.2884818]
[1770612271740,0.00042535,2091.0,2090.5,11.45438135]
[1770612279241,0.00042535,2091.0,2090.7,11.45438135]
[1770612280937,0.00042535,2091.0,2090.5,11.45438135]
[1770612288043,9.79580297,2091.0,2090.5,11.45438135]
[1770612288238,9.79537762,2090.8,2090.5,10.45438135]
[1770612288439,0.00042535,2091.0,2090.5,10.45438135]
[1770612290342,0.00042535,2091.0,2090.7,10.84536477]
[1770612296051,10.81919422,2091.0,2090.7,10.84536477]
[1770612296253,10.81919422,2091.0,2090.6,10.84536477]
[1770612296748,10.81919422,2091.0,2090.5,10.84536477]
[1770612300551,53.74029539,2091.5,2090.8,1.83410045]
[1770612300853,11.02513801,2091.7,2091.1,10.84536477]
[1770612301055,0.23921,2091.8,2091.1,10.84536477]
[1770612301255,11.26434801,2091.8,2091.1,10.84536477]
[1770612301655,13.10404393,2091.8,2091.1,10.8498565]
[1770612303360,1.83410045,2091.2,2091.0,6.53019857]
[1770612303655,11.25691885,2091.3,2090.8,10.84536477]
[1770612304458,11.25691885,2091.3,2090.8,10.85084056]
[1770612305060,11.71808983,2091.5,2090.8,10.85084056]
[1770612307957,1.83410045,2091.4,2090.8,10.85084056]
[1770612308162,11.71808983,2091.3,2090.8,10.85084056]
[1770612308565,11.71808983,2091.1,2090.8,5.79e-06]
[1770612308864,11.71808983,2091.1,2090.6,10.84536477]
[1770612309159,11.71808983,2091.1,2090.4,10.84536477]
[1770612309765,11.71808983,2091.1,2090.4,10.85051362]
[1770612310968,11.71808983,2091.4,2090.9,10.84536477]
[1770612311362,11.71808983,2091.7,2090.9,10.84536477]
[1770612311558,11.7236853,2091.8,2091.0,1.83410045]
[1770612311762,11.7236853,2091.8,2091.3,10.84536477]
[1770612312367,11.7236853,2091.8,2090.9,2.85318246]
[1770612312368,13.55778575,2091.8,2090.9,2.85318246]